bitfinex/quotes_SOLUSD_20251024
["timestamp","ask_amount","ask_price","bid_price","bid_amount"]
[1761273896215,2.57863207,193.01,192.96,5.18242122]
[1761273896421,3.86484435,193.0,192.96,5.89242122]
[1761273896606,6.44347642,193.0,192.96,5.89242122]
[1761273896807,3.24863207,193.0,192.96,5.89242122]
[1761273897305,39.50863207,193.02,192.97,11.58647521]
[1761273897504,3.86544439,193.01,192.97,11.58647521]
[1761273897821,4.53544439,193.01,192.97,0.71]
[1761273898016,0.67,193.01,192.97,0.71]
[1761273898224,4.53556274,193.01,192.97,0.71]
[1761273898911,4.53556274,193.01,192.98,5.18188413]
[1761273899110,3.24863207,193.0,192.95,0.71]
[1761273899318,3.24863207,193.0,192.95,10.87647521]
[1761273899507,2.57863207,193.0,192.95,11.58647521]
[1761273899703,2.57863207,193.0,192.95,0.71]
[1761273899920,3.24863207,192.99,192.95,0.71]
[1761273900315,2.57863207,192.99,192.95,0.71]
[1761273900521,3.24863207,193.0,192.95,5.89242315]
[1761273900701,2.57863207,192.98,192.95,5.18242315]
[1761273900903,0.67,192.98,192.95,5.18242315]
[1761273901105,2.57863207,192.99,192.95,5.89242315]
[1761273901311,0.67,193.0,192.95,5.89242315]
[1761273901500,3.86646333,192.99,192.96,0.71]
[1761273902226,3.86646333,192.99,192.95,5.18242315]
[1761273902417,3.86646333,192.99,192.96,0.71]
[1761273902729,3.86646333,192.99,192.97,5.18215266]
[1761273903523,3.86646333,192.99,192.97,5.89215266]
[1761273903712,2.57863207,193.03,192.98,0.71]
[1761273903914,3.86844132,193.02,192.98,3.28863207]
[1761273904121,36.26,193.03,192.99,0.71]
[1761273905146,36.26,193.03,193.0,5.18134715]
[1761273905843,0.67,193.02,192.97,12.95538166]
[1761273906045,4.54029322,193.02,192.98,0.71]
[1761273906352,3.87029322,193.01,192.98,0.71]
[1761273906522,7.11892529,193.01,192.98,5.18188413]
[1761273906713,36.26,193.03,192.95,5.18268981]
[1761273906714,7.11824387,193.0,192.95,5.18268981]
[1761273907029,7.11824387,193.0,192.95,18.84941435]
[1761273907030,3.24863207,193.0,192.95,18.84941435]
[1761273907225,2.57863207,192.98,192.95,5.18268981]
[1761273907424,2.57863207,193.01,192.96,0.71]
[1761273907728,3.86954534,193.0,192.96,0.71]
[1761273907929,3.24863207,193.0,192.96,0.71]
[1761273908121,3.8694879,192.99,192.96,0.71]
[1761273908315,7.11811997,192.99,192.95,18.13941435]
[1761273908517,3.24863207,192.99,192.95,18.84941435]
[1761273909328,3.24863207,192.98,192.95,5.18268981]
[1761273909630,2.57863207,192.97,192.93,5.18303268]
[1761273909933,3.24863207,192.97,192.93,5.18303268]
[1761273910116,2.57863207,192.97,192.93,5.18303268]
[1761273910317,0.67,192.96,192.93,5.18303268]
[1761273910939,2.57863207,192.94,192.9,0.71]
[1761273911331,3.29863207,192.94,192.9,0.71]
[1761273911823,0.72,192.94,192.9,0.71]
[1761273912323,0.72,192.94,192.9,5.18400621]
[1761273912538,2.57863207,192.93,192.88,5.18457071]
[1761273912759,2.57863207,192.93,192.89,0.71]
[1761273912947,2.57863207,192.96,192.89,3.28863207]
[1761273913118,3.8686876,192.95,192.89,3.28863207]
[1761273913319,3.8686876,192.95,192.9,0.71]
[1761273913621,3.8686876,192.94,192.9,0.71]
[1761273913822,2.57863207,192.96,192.9,0.71]
[1761273914043,3.86852597,192.95,192.9,0.71]
[1761273914219,0.72,192.95,192.9,0.71]
[1761273914617,4.58786791,192.95,192.91,5.18376444]
[1761273915356,0.72,192.94,192.91,5.18376444]
[1761273916326,7.16507071,192.94,192.89,5.18430193]
[1761273916531,3.29863207,192.94,192.89,5.18430193]
[1761273916738,3.29863207,192.93,192.88,5.18457071]
[1761273917250,3.29863207,192.94,192.89,0.71]
[1761273917461,3.8650166,192.93,192.89,0.71]
[1761273918257,3.29863207,192.94,192.89,5.89403788]
[1761273918552,36.24,192.96,192.9,2.57863207]
[1761273918759,3.86430828,192.95,192.91,0.71]
[1761273919054,36.24,192.96,192.91,3.28863207]
[1761273919349,36.24,192.96,192.92,0.71]
[1761273919547,36.96,192.96,192.92,0.71]
[1761273920053,36.24,192.96,192.92,3.28863207]
[1761273920263,36.24,192.96,192.94,5.18295843]
[1761273920753,36.24,192.96,192.94,5.89295843]
[1761273921329,17.92145017,193.01,192.95,5.89268981]
[1761273921530,3.86387778,193.0,192.95,5.89268981]
[1761273921726,3.86387778,192.99,192.95,5.89268981]
[1761273921971,51.5828181,193.01,192.95,5.89268981]
[1761273922146,3.86405771,193.0,192.95,5.89268981]
[1761273922757,4.58405771,193.0,192.97,5.18215266]
[1761273923061,3.86405771,193.0,192.97,5.18215266]
[1761273923263,14.6228181,193.01,192.98,0.71]
[1761273923768,4.58398616,193.0,192.76,25.81533011]
[1761273924064,4.58398616,193.0,192.9,2.57863207]
[1761273924065,2.57863207,192.97,192.9,2.57863207]
[1761273924270,3.86398616,192.96,192.91,10.87647521]
[1761273924451,2.57863207,192.97,192.91,11.58647521]
[1761273924652,6.44232927,192.96,192.92,5.18349574]
[1761273924865,2.57863207,192.96,192.92,5.18349574]
[1761273925058,3.29863207,192.96,192.92,5.18349574]
[1761273925380,3.29863207,192.96,192.92,5.89349574]
[1761273925664,41.58172946,192.99,192.92,5.89349574]
[1761273925957,2.57863207,192.97,192.93,0.71]
[1761273926358,2.57863207,192.96,192.93,0.71]
[1761273927776,3.29863207,192.97,192.93,5.89300682]
[1761273928468,3.29863207,192.97,192.93,5.18300682]
[1761273928770,2.57863207,192.96,192.93,5.18300682]
[1761273929464,0.72,192.97,192.93,5.18300682]
[1761273929771,2.57863207,192.96,192.93,5.84300682]
[1761273930671,2.57863207,192.96,192.93,5.18300682]
[1761273931369,2.57863207,192.96,192.92,5.18349574]
[1761273931557,3.23863207,192.96,192.92,5.84349574]
[1761273933781,2.57863207,192.95,192.92,5.84349574]
[1761273935774,0.66,192.96,192.92,5.84349574]
[1761273935963,3.23863207,192.95,192.92,5.84349574]
[1761273936169,2.57863207,192.95,192.92,5.84349574]
[1761273936366,3.23863207,192.95,192.92,5.84349574]
[1761273936563,2.57863207,192.96,192.92,5.18349574]
[1761273936767,2.57863207,192.96,192.92,11.53647521]
[1761273936966,3.23863207,192.97,192.93,0.66]
[1761273938368,3.23863207,192.97,192.94,5.18295843]
[1761273938971,2.57863207,192.97,192.94,5.84295843]
[1761273939579,3.23863207,192.97,192.93,5.18322707]
[1761273939767,3.87351658,192.96,192.94,0.66]
[1761273939968,3.23863207,192.97,192.94,0.66]
[1761273942589,2.57863207,192.97,192.94,5.84285206]
[1761273942890,2.57863207,192.98,192.94,5.84285206]
[1761273943093,3.87566887,192.97,192.94,5.84285206]
[1761273943279,3.26863207,192.98,192.94,5.84285206]
[1761273943470,3.87609157,192.97,192.94,5.84285206]
[1761273943670,3.26863207,192.98,192.94,5.84285206]
[1761273943877,3.87609188,192.97,192.94,5.84285206]
[1761273944076,3.26863207,192.98,192.94,5.84285206]
[1761273944278,3.8760916,192.97,192.94,5.84285206]
[1761273944590,3.26863207,192.98,192.94,5.84285206]
[1761273944771,3.87626176,192.97,192.94,5.84285206]
[1761273944970,2.57863207,192.97,192.94,5.84285206]
[1761273945583,3.26863207,192.97,192.94,5.84285206]
[1761273946685,3.26863207,192.97,192.93,5.18322707]
[1761273946982,3.26863207,192.97,192.93,5.89322707]
[1761273947189,7.14521586,192.96,192.93,5.18322707]
[1761273947371,3.26863207,192.96,192.93,5.18322707]
[1761273947978,3.26863207,192.96,192.93,5.89322707]
[1761273949188,4.56673953,192.95,192.91,18.14317556]
[1761273949372,37.5028181,193.01,192.93,10.87647521]
[1761273949373,0.69,193.0,192.93,10.87647521]
[1761273949575,0.69,193.0,192.96,2.57863207]
[1761273949778,15.3128181,193.01,192.96,2.57863207]
[1761273949981,4.56718738,193.0,192.96,3.28863207]
[1761273950169,4.56718738,193.0,192.96,2.57863207]
[1761273950170,3.87731398,192.99,192.96,2.57863207]
[1761273950370,14.6228181,193.01,192.97,3.28863207]
[1761273950582,3.87825978,193.0,192.97,3.28863207]
[1761273950784,14.6228181,193.01,192.99,2.57863207]
[1761273951272,14.6228181,193.01,193.0,5.89134715]
[1761273951488,18.50080505,193.01,193.0,5.89134715]
[1761273951678,3.87798695,193.01,193.0,5.89134715]
[1761273952997,2.34029654,193.04,192.99,5.18161562]
[1761273953173,3.87695282,193.03,192.99,5.18161562]
[1761273953493,3.87695282,193.02,192.99,5.89161562]
[1761273953695,0.69,193.03,192.99,5.89161562]
[1761273953895,3.87590084,193.02,192.99,5.89161562]
[1761273954097,0.69,193.03,192.99,5.89161562]
[1761273954291,3.87495198,193.02,192.99,5.89161562]
[1761273954493,2.34029654,193.03,192.99,5.89161562]
[1761273954693,4.56501536,193.02,192.99,5.89161562]
[1761273954890,0.69,193.02,192.99,5.89161562]
[1761273955095,1.65029654,193.03,192.99,5.89161562]
[1761273955280,3.87429328,193.02,192.99,5.89161562]
[1761273955599,2.34029654,193.03,192.99,5.89161562]
[1761273955793,3.87429328,193.02,192.99,5.89161562]
[1761273956101,2.34029654,193.03,192.99,5.89161562]
[1761273956279,3.87353636,193.02,192.99,5.89161562]
[1761273956479,1.65029654,193.03,192.99,5.89161562]
[1761273956695,3.87359975,193.02,192.99,5.89161562]
[1761273957604,4.56359975,193.02,192.99,5.89161562]
[1761273958092,3.87359975,193.02,192.99,5.89161562]
[1761273958489,3.87359975,193.02,192.98,29.01306967]
[1761273958806,4.56359975,193.02,192.98,29.72306967]
[1761273960309,4.56359975,193.02,192.98,29.01306967]
[1761273960499,3.87359975,193.02,193.0,5.18134715]
[1761273960685,4.56359975,193.02,193.0,5.18134715]
[1761273961187,3.87359975,193.02,193.01,0.71]
[1761273961499,107.1792115,193.08,193.01,2.36029654]
[1761273961500,1.65029654,193.06,193.01,2.36029654]
[1761273961701,1.65029654,193.06,193.02,0.71]
[1761273961890,2.34029654,193.06,193.02,0.71]
[1761273962091,36.24,193.07,193.02,2.36029654]
[1761273962415,36.24,193.07,193.04,5.18027351]
[1761273962585,0.69,193.08,193.05,0.71]
[1761273962906,11.63246157,193.09,193.05,2.36029654]
[1761273963284,11.63246157,193.09,193.06,0.71]
[1761273964198,11.63246157,193.09,193.07,10.87647521]
[1761273964497,11.63246157,193.09,193.08,17.70597208]
[1761273964881,11.63246157,193.09,193.08,18.41597208]
[1761273969086,11.63246157,193.09,193.08,16.76567554]
[1761273969492,13.97275811,193.09,193.04,5.18009146]
[1761273969807,2.34029654,193.08,193.04,5.18009146]
[1761273970114,2.34029654,193.08,193.04,5.89009146]
[1761273970909,0.68,193.07,193.04,5.89009146]
[1761273971211,0.68,193.07,193.03,16.05701709]
[1761273971399,2.33029654,193.07,193.03,16.05701709]
[1761273971812,0.68,193.07,193.03,16.05701709]
[1761273972007,0.68,193.07,193.03,16.70701709]
[1761273972912,11.63246157,193.09,193.04,2.30029654]
[1761273973112,11.63246157,193.09,193.06,6.8300334]
[1761273973315,11.63246157,193.09,193.06,19.77937557]
[1761273973513,11.63246157,193.09,193.07,0.65]
[1761273973904,11.63246157,193.09,193.08,10.87647521]
[1761273974409,11.63246157,193.09,193.08,11.52647521]
[1761273974997,11.63246157,193.09,193.08,18.35597208]
[1761273975512,11.63246157,193.09,193.08,16.70567554]
[1761273975897,11.63246157,193.09,193.08,16.05567554]
[1761273976097,11.63246157,193.09,193.08,5.17920033]
[1761273977308,12.31246157,193.09,193.08,5.17920033]
[1761273977819,11.63246157,193.09,193.08,5.17920033]
[1761273978198,11.63246157,193.09,193.07,10.87647521]
[1761273978397,11.63246157,193.09,193.06,18.77907903]
[1761273981005,11.63246157,193.09,193.06,19.77937557]
[1761273981311,0.68,193.08,193.06,5.17973686]
[1761273981513,0.68,193.08,193.04,16.05648279]
[1761273981907,11.63246157,193.09,193.07,1.65029654]
[1761273982109,11.63246157,193.09,193.08,37.95029654]
[1761273982302,11.63246157,193.09,193.08,38.60029654]
[1761273982623,11.63246157,193.09,193.08,43.77949687]
[1761273984508,11.63246157,193.09,193.08,55.41195844]
[1761273984704,1e-08,193.09,193.08,55.41195844]
[1761273985115,1e-08,193.09,193.08,67.93873019]
[1761273985903,1e-08,193.09,193.08,66.28843365]
[1761273994622,1e-08,193.09,193.08,66.22843365]
[1761273995434,1e-08,193.09,193.08,64.57813711]
[1761273995625,1e-08,193.09,193.08,66.22843365]
[1761273997842,0.1,193.18,193.17,10.87647521]
[1761273998020,0.1,193.18,193.17,48.76677175]
[1761273998218,0.1,193.18,193.17,13.20677175]
[1761273998410,0.1,193.18,193.17,49.54677175]
[1761273998730,0.1,193.18,193.17,51.6194717]
[1761273999122,0.1,193.18,193.17,52.13715042]
[1761273999931,0.1,193.18,193.17,57.3139377]
[1761274000728,0.1,193.18,193.17,56.6339377]
[1761274000923,0.1,193.18,193.17,57.3139377]
[1761274002147,0.1,193.18,193.17,57.3239377]
[1761274003840,0.1,193.18,193.17,19.77625898]
[1761274004138,0.1,193.18,193.17,56.11625898]
[1761274004714,0.76,193.18,193.13,1.65029654]
[1761274004938,2.41029654,193.18,193.13,10.87647521]
[1761274005130,2.41029654,193.18,193.14,36.34]
[1761274005321,2.31029654,193.17,193.14,36.34]
[1761274005520,2.31029654,193.17,193.11,1.65029654]
[1761274005752,0.66,193.16,193.13,10.87647521]
[1761274006433,0.66,193.16,193.13,16.05418508]
[1761274007532,2.31029654,193.16,193.12,41.49811252]
[1761274007839,0.66,193.16,193.12,41.49811252]
[1761274008022,0.66,193.15,193.12,41.49811252]
[1761274008339,0.66,193.15,193.12,5.17811252]
[1761274008536,0.66,193.15,193.11,16.05487094]
[1761274009636,2.31029654,193.15,193.11,5.17839573]
[1761274010143,0.66,193.14,193.11,5.17839573]
[1761274010443,2.31029654,193.14,193.1,41.49853231]
[1761274010645,2.31029654,193.14,193.08,12.52677175]
[1761274010646,0.66,193.14,193.08,47.19647521]
[1761274010942,0.66,193.13,193.08,52.37544233]
[1761274011233,1.65029654,193.12,193.08,16.05544233]
[1761274011620,1.65029654,193.12,193.08,5.17896712]
[1761274011621,0.66,193.11,193.08,5.17896712]
[1761274012832,0.66,193.11,193.07,5.17946858]
[1761274013224,0.66,193.11,193.07,7.75604418]
[1761274013939,0.66,193.11,193.07,5.17946858]
[1761274014127,0.66,193.11,193.07,7.75604418]
[1761274014329,0.66,193.11,193.07,5.17946858]
[1761274014724,0.66,193.11,193.07,7.75604418]
[1761274018648,3.2365756,193.11,193.06,16.05621207]
[1761274018942,2.5765756,193.1,193.06,16.05621207]
[1761274019124,3.2365756,193.1,193.06,16.05621207]
[1761274019325,0.66,193.09,193.06,16.05621207]
[1761274019520,3.2365756,193.09,193.06,5.17973686]
[1761274019944,0.66,193.08,193.06,5.17973686]
[1761274020849,0.66,193.08,193.05,5.18000518]
[1761274021730,0.66,193.08,193.02,29.67617413]
[1761274021731,2.5765756,193.06,193.02,10.87647521]
[1761274022254,3.2365756,193.05,193.0,5.18134715]
[1761274022639,0.66,193.04,193.0,5.18134715]
[1761274024049,2.5765756,193.03,193.0,5.18134715]
[1761274024554,0.66,193.02,192.98,16.05809489]
[1761274024850,3.2365756,193.02,192.98,5.18161968]
[1761274025050,0.66,193.02,192.98,5.18161968]
[1761274025359,0.66,193.01,192.98,5.18161968]
[1761274026052,0.66,193.01,192.97,18.63519538]
[1761274027156,0.66,193.01,192.97,10.87647521]
[1761274028558,0.66,193.01,192.97,13.45305081]
[1761274029056,0.66,193.01,192.97,18.63516936]
[1761274029767,0.66,193.01,192.97,16.05859376]
[1761274032363,0.66,193.01,192.97,16.72859376]
[1761274033173,0.66,193.01,192.97,19.30516936]
[1761274033674,0.66,193.01,192.98,2.5765756]
[1761274034856,0.66,193.01,192.97,19.30516936]
[1761274035376,3.2365756,193.01,192.97,16.05859376]
[1761274035867,0.66,193.01,192.97,19.30516936]
[1761274036070,2.5765756,193.02,192.97,16.72859376]
[1761274036071,0.68,193.0,192.97,16.72859376]
[1761274036268,0.68,193.01,192.97,16.72859376]
[1761274036444,0.68,193.01,192.97,19.30516936]
[1761274038366,3.2565756,193.01,192.97,5.18211855]
[1761274038556,2.5765756,193.01,192.97,5.18211855]
[1761274038764,0.68,193.0,192.97,5.18211855]
[1761274039643,2.5765756,192.98,192.92,5.18349574]
[1761274039852,2.5765756,192.96,192.91,3.2465756]
[1761274040050,2.5765756,192.96,192.91,0.67]
[1761274040051,0.68,192.95,192.91,0.67]
[1761274040361,3.2565756,192.95,192.91,10.87647521]
[1761274040859,0.68,192.94,192.91,5.18371426]
[1761274041054,3.2565756,192.94,192.9,5.18401588]
[1761274041262,2.5765756,192.95,192.91,0.67]
[1761274041463,2.5765756,192.95,192.91,5.85351046]
[1761274041652,3.2565756,192.95,192.91,5.85351046]
[1761274041854,0.68,192.94,192.91,5.18351046]
[1761274043078,2.5765756,192.93,192.89,16.06062951]
[1761274043374,2.5765756,192.91,192.88,0.2]
[1761274043569,2.5765756,192.9,192.88,5.38451268]
[1761274044073,3.2565756,192.9,192.88,5.38451268]
[1761274044576,0.68,192.9,192.88,5.38451268]
[1761274045278,3.2565756,192.9,192.88,5.38451268]
[1761274045467,2.5765756,192.89,192.88,0.2]
[1761274045670,3.2565756,192.89,192.88,0.2]
[1761274048480,0.68,192.89,192.88,0.2]
[1761274050281,2.5765756,192.91,192.88,5.38457071]
[1761274050462,0.67,192.91,192.88,5.38457071]
[1761274050865,0.67,192.9,192.88,5.38457071]
[1761274053689,3.2465756,192.9,192.88,5.38457071]
[1761274055859,36.92,192.92,192.88,5.38457071]
[1761274056064,3.2565756,192.91,192.88,0.2]
[1761274056775,2.5765756,192.91,192.88,0.2]
[1761274056976,0.68,192.9,192.88,0.2]
[1761274057487,0.68,192.9,192.88,5.38454641]
[1761274058876,3.2565756,192.9,192.88,5.38454641]
[1761274059489,0.68,192.89,192.88,5.38454641]
[1761274062088,3.2565756,192.89,192.88,0.2]
[1761274064701,8.44087753,192.89,192.88,0.2]
[1761274069509,102.0,192.92,192.88,0.2]
[1761274069691,3.2465756,192.92,192.88,6.04452006]
[1761274070672,36.2,192.93,192.91,2.5765756]
[1761274070995,36.2,192.93,192.9,2.5765756]
[1761274071387,36.2,192.93,192.91,0.66]
[1761274072198,2.5765756,192.94,192.89,3.2365756]
[1761274072501,39.4665756,192.94,192.89,0.66]
[1761274072719,0.67,192.93,192.89,5.84403925]
[1761274072930,2.32203942,192.93,192.89,5.84403925]
[1761274073213,36.22,192.94,192.9,2.31203942]
[1761274073588,36.22,192.94,192.91,2.31203942]
[1761274073990,36.22,192.94,192.92,0.66]
[1761274074620,1.65203942,192.99,192.94,5.18295843]
[1761274074811,36.2,192.97,192.94,5.18295843]
[1761274075311,36.87,192.97,192.94,5.18295843]
[1761274075506,2.32203942,192.96,192.93,5.18313999]
[1761274075712,1.65203942,192.94,192.9,5.18403317]
[1761274076235,2.32203942,192.94,192.9,5.84403317]
[1761274076429,0.67,192.94,192.9,5.84403317]
[1761274076729,0.67,192.94,192.91,5.84355852]
[1761274076926,1.65203942,192.95,192.91,5.84355852]
[1761274077128,2.32203942,192.95,192.91,5.84355852]
[1761274077837,0.67,192.95,192.91,5.84355852]
[1761274078012,0.67,192.95,192.91,7.49559794]
[1761274078211,36.87,192.97,192.92,0.66]
[1761274078413,0.67,192.96,192.92,0.66]
[1761274079224,36.87,192.96,192.93,5.18322707]
[1761274080241,38.52203942,192.96,192.93,5.18322707]
[1761274080440,37.85203942,192.96,192.93,5.18322707]
[1761274080635,38.52203942,192.96,192.93,5.18322707]
[1761274081336,36.2,192.96,192.93,5.18322707]
[1761274081514,36.2,192.96,192.93,5.84322707]
[1761274082339,38.52203942,192.96,192.93,5.18322707]
[1761274083353,1.65203942,192.95,192.91,28.06350163]
[1761274083542,1.65203942,192.92,192.9,5.18402004]
[1761274083723,0.67,192.91,192.9,5.18402004]
[1761274084436,1.65203942,192.92,192.9,5.18402004]
[1761274084648,2.32203942,192.92,192.9,5.18402004]
[1761274084829,37.85203942,192.93,192.9,5.18402004]
[1761274085030,37.85203942,192.93,192.9,5.84402004]
[1761274085240,38.52203942,192.93,192.9,5.18402004]
[1761274085851,1.65203942,193.02,192.97,22.88]
[1761274086060,2.32203942,193.04,192.98,2.31203942]
[1761274086360,36.2,193.03,192.99,1.65203942]
[1761274086657,36.87,193.03,192.99,2.31203942]
[1761274087451,36.2,193.03,193.0,5.84134715]
[1761274090252,36.2,193.03,193.01,0.66]
[1761274090454,36.2,193.03,193.0,5.18134715]
[1761274090661,36.2,193.03,193.0,5.84134715]
[1761274091967,36.87,193.03,192.99,5.18161562]
[1761274092167,36.87,193.03,192.99,5.90161562]
[1761274092474,37.85203942,193.03,192.99,5.18161562]
[1761274092761,0.67,193.02,192.99,5.18161562]
[1761274093762,0.67,193.02,192.97,15.32735513]
[1761274093763,0.67,193.02,192.98,5.18188413]
[1761274094345,0.67,193.02,192.98,5.90188413]
[1761274094734,0.67,193.02,192.98,5.18188413]
[1761274094944,37.85203942,193.03,193.0,5.18134715]
[1761274095250,38.52203942,193.03,193.0,5.18134715]
[1761274095445,36.2,193.03,193.0,5.90134715]
[1761274095657,36.2,193.03,193.0,5.18134715]
[1761274095844,36.2,193.03,193.0,5.90134715]
[1761274096659,36.87,193.03,193.0,5.90134715]
[1761274096843,36.87,193.03,193.0,5.18134715]
[1761274098248,36.2,193.03,193.0,5.18134715]
[1761274098450,0.67,193.02,193.0,5.18134715]
[1761274098863,0.67,193.02,192.99,5.18161562]
[1761274099164,36.2,193.03,192.99,5.18161562]
[1761274099365,0.67,193.09,193.0,11.59647521]
[1761274099671,1.65203942,193.08,193.03,10.87647521]
[1761274099965,1.65203942,193.08,193.02,1.65203942]
[1761274100271,2.32203942,193.08,193.02,13.24851463]
[1761274100464,2.32203942,193.08,193.03,5.18054188]
[1761274101070,2.32203942,193.08,193.03,5.90054188]
[1761274101948,1.65203942,193.06,193.03,5.18054188]
[1761274102357,2.32203942,193.06,193.03,5.18054188]
[1761274103066,0.67,193.06,193.03,5.18054188]
[1761274103265,38.50203942,193.05,193.01,5.18085428]
[1761274103457,0.67,193.04,193.01,5.18085428]
[1761274104172,37.83203942,193.05,193.01,5.18085428]
[1761274104469,37.83203942,193.05,193.02,0.72]
[1761274104672,36.18,193.05,193.02,0.72]
[1761274105951,36.18,193.05,193.02,5.90065901]
[1761274106670,0.77,193.18,193.1,10.87647521]
[1761274106855,2.42203942,193.18,193.11,2.37203942]
[1761274107166,2.42203942,193.18,193.11,0.72]
[1761274107167,38.01203942,193.17,193.11,0.72]
[1761274107372,38.68203942,193.17,193.11,0.72]
[1761274107670,37.03,193.17,193.11,2.37203942]
[1761274107870,0.1,193.18,193.14,1.65203942]
[1761274108073,0.1,193.18,193.16,1.65203942]
[1761274108572,0.1,193.18,193.17,2.34203942]
[1761274109273,0.1,193.18,193.17,36.09851463]
[1761274109865,0.1,193.18,193.17,41.27530191]
[1761274110166,0.1,193.18,193.17,34.44647521]
[1761274110853,0.1,193.18,193.17,36.09851463]
[1761274112372,0.1,193.18,193.17,13.21851463]
[1761274113156,0.1,193.18,193.15,6.82925682]
[1761274113365,0.1,193.18,193.16,10.87647521]
[1761274113562,0.78,193.18,193.14,10.87647521]
[1761274114162,0.1,193.18,193.14,10.87647521]
[1761274114367,0.1,193.18,193.15,0.69]
[1761274115264,0.78,193.18,193.12,10.87647521]
[1761274115580,1.65203942,193.17,193.11,10.87647521]
[1761274115777,0.78,193.18,193.11,10.87647521]
[1761274115976,2.33203942,193.17,193.11,10.87647521]
[1761274116176,2.33203942,193.17,193.11,11.56647521]
[1761274116360,2.33203942,193.17,193.11,16.74463467]
[1761274116767,1.65203942,193.16,193.11,16.74463467]
[1761274117183,2.33203942,193.16,193.11,16.74463467]
[1761274117978,2.33203942,193.16,193.11,16.05463467]
[1761274118178,2.33203942,193.16,193.11,16.74463467]
[1761274118890,1.65203942,193.13,193.09,10.87647521]
[1761274119197,1.65203942,193.13,193.08,0.69]
[1761274119361,1.65203942,193.13,193.09,0.69]
[1761274119672,1.65203942,193.12,193.09,0.69]
[1761274119883,1.65203942,193.11,193.08,10.87647521]
[1761274120081,1.65203942,193.11,193.07,5.17923132]
[1761274120271,1.65203942,193.11,193.07,5.86923132]
[1761274120865,1.65203942,193.13,193.08,0.69]
[1761274121265,2.36203942,193.13,193.08,0.69]
[1761274121488,1.65203942,193.13,193.08,0.69]
[1761274121692,2.36203942,193.13,193.08,0.69]
[1761274122589,2.36203942,193.13,193.08,5.86909098]
[1761274122965,1.65203942,193.12,193.08,5.86909098]
[1761274124585,2.36203942,193.12,193.08,5.86909098]
[1761274126074,0.71,193.12,193.08,5.86909098]
[1761274126583,1.65203942,193.13,193.09,0.68]
[1761274126771,2.36203942,193.13,193.09,0.68]
[1761274128374,1.65203942,193.12,193.09,0.68]
[1761274129489,2.36203942,193.12,193.08,5.17909098]
[1761274129682,2.36203942,193.12,193.09,0.68]
[1761274130578,2.36203942,193.12,193.08,5.17909098]
[1761274130783,0.71,193.12,193.08,5.17909098]
[1761274130991,0.71,193.12,193.08,5.85909098]
[1761274131493,1.65203942,193.11,193.08,5.17909098]
[1761274132088,2.36203942,193.11,193.08,5.17909098]
[1761274132394,2.36203942,193.11,193.08,5.85909098]
[1761274133378,2.36203942,193.11,193.07,5.17946858]
[1761274133696,2.36203942,193.11,193.07,5.85946858]
[1761274134091,0.71,193.11,193.07,5.85946858]
[1761274136198,22.88,193.16,193.08,0.68]
[1761274136399,0.71,193.16,193.12,2.57656798]
[1761274136697,2.57656798,193.12,193.08,10.87647521]
[1761274136870,2.57656798,193.12,193.08,5.17908573]
[1761274137074,3.28656798,193.12,193.07,2.57656798]
[1761274137272,3.28656798,193.12,193.08,0.68]
[1761274137678,0.71,193.12,193.08,0.68]
[1761274138281,3.28656798,193.12,193.08,0.68]
[1761274139011,3.28656798,193.12,193.08,5.8591823]
[1761274139691,0.71,193.11,193.08,5.1791823]
[1761274139893,2.57656798,193.1,193.06,5.17949859]
[1761274140097,0.71,193.11,193.0,12.95333869]
[1761274140098,2.57656798,193.07,193.0,12.95333869]
[1761274140287,2.57656798,193.06,193.01,16.05755391]
[1761274140487,2.57656798,193.04,193.0,0.68]
[1761274140798,2.57656798,193.02,192.97,0.68]
[1761274141178,2.57656798,193.02,192.98,0.68]
[1761274141381,3.28656798,193.02,192.98,0.68]
[1761274142323,2.57656798,193.01,192.97,16.05851206]
[1761274142477,2.57656798,193.01,192.98,0.68]
[1761274142677,2.57656798,193.01,193.0,22.88]
[1761274145086,0.71,193.02,192.98,5.8617953]
[1761274145302,3.28656798,193.02,192.98,5.8617953]
[1761274145688,0.71,193.02,192.98,5.8617953]
[1761274145887,3.28656798,193.02,192.98,5.8617953]
[1761274146098,3.28656798,193.02,192.98,0.68]